fUSD/lending_fUSD_20260111
["ID","MTS","AMOUNT","RATE_DAILY","PERIOD"]
[401274709,1768090977998,-339.55340806,0.00013947,2]
[401274710,1768090979599,-350.0,0.00013947,2]
[401274711,1768090981202,300.0,0.00013946,2]
[401274712,1768090982407,-188.43739283,0.00013947,2]
[401274713,1768090984025,-169.57086422,0.00013947,2]
[401274714,1768090986083,-423.18869119,0.00013947,2]
[401274715,1768090987778,-345.87696134,0.00013947,2]
[401274716,1768090989834,-364.91422489,0.00013947,2]
[401274717,1768090991502,-363.40227131,0.00013947,2]
[401274718,1768090993579,-174.54690617,0.00013947,2]
[401274719,1768090996407,-280.3278616,0.00013947,2]
[401274720,1768090997935,-320.29133073,0.00013947,2]
[401274721,1768091000224,-167.55253785,0.00013947,2]
[401274722,1768091002471,-158.5071362,0.00013947,2]
[401274723,1768091005441,-172.83258673,0.00013947,2]
[401274724,1768091007098,-500.0,0.00013947,2]
[401274725,1768091008840,-253.1701093,0.00013947,2]
[401274726,1768091011676,-569.43,0.00013947,2]
[401274727,1768091013870,-63.02144024,0.00013947,2]
[401274728,1768091013895,-646.38034478,0.00013947,2]
[401274729,1768091016445,-280.57,0.00013947,2]
[401274730,1768091019331,-189.01438501,0.00013947,2]
[401274731,1768091021099,-195.0,0.00013947,2]
[401274732,1768091024563,-183.61543705,0.00013947,2]
[401274733,1768091026253,-370.14968596,0.00013947,2]
[401274734,1768091029212,-621.2467606,0.00013947,2]
[401274735,1768091031536,-14.0233866,0.00013947,2]
[401274736,1768091031557,-185.80151122,0.00013947,2]
[401274737,1768091033224,-165.7434652,0.00013947,2]
[401274738,1768091033573,204.11190148,0.00013947,2]
[401274739,1768091035392,-343.46428555,0.00013947,2]
[401274740,1768091036237,342.12086974,0.00013947,2]
[401274741,1768091037494,-207.62401564,0.00013947,2]
[401274742,1768091039937,-300.0,0.00013947,2]
[401274743,1768091041592,4669.05376246,0.00013947,2]
[401274744,1768091041616,124.94623754,0.00013947,2]
[401274745,1768091042121,-230.39716007,0.00013947,2]
[401274746,1768091043833,-240.01522619,0.00013947,2]
[401274747,1768091045608,-443.43511023,0.00013947,2]
[401274748,1768091047868,-250.0,0.00013947,2]
[401274749,1768091050269,-235.95137901,0.00013947,2]
[401274750,1768091050768,9875.06376246,0.00013947,2]
[401274751,1768091050798,4140.41453278,0.00013947,2]
[401274752,1768091052792,-168.55888683,0.00013947,2]
[401274753,1768091055082,-344.86524192,0.00013947,2]
[401274754,1768091061878,150.0,0.0001344,2]
[401274756,1768091176102,659.3,0.00013581,2]
[401274758,1768091245779,500.0,0.00013,2]
[401274760,1768091260034,4422.36652416,0.00013,2]
[401274761,1768091264708,127.92894306,0.00012,2]
[401274762,1768091264734,5813.10231862,0.00012,2]
[401274763,1768091275733,214.51,0.00013432,2]
[401274765,1768091286876,3972.39768138,0.00013889,2]
[401274766,1768091286914,10000.01,0.00013889,2]
[401274767,1768091286945,10000.01,0.00013889,2]
[401274768,1768091286977,10000.01,0.00013889,2]
[401274769,1768091287007,10000.01,0.00013889,2]
[401274770,1768091287042,10000.01,0.00013889,2]
[401274771,1768091287089,10000.01,0.00013889,2]
[401274772,1768091287120,10000.01,0.00013889,2]
[401274773,1768091287151,10000.01,0.00013889,2]
[401274774,1768091287185,10000.01,0.00013889,2]
[401274775,1768091288546,-245.27557685,0.00013889,2]
[401274776,1768091289970,1929.22270997,0.0001,2]
[401274777,1768091290222,-250.0,0.00013889,2]
[401274778,1768091291765,391.03482826,7.888e-05,2]
[401274779,1768091295259,-175.36735229,0.00013889,2]
[401274781,1768091298202,-256.18768183,0.00013889,2]
[401274782,1768091300393,-318.70496588,0.00013889,2]
[401274783,1768091317618,-214.0,0.0001375,2]
[401274784,1768091347637,500.0,0.000137,2]
[401274785,1768091359094,500.0,0.000138,2]
[401274786,1768091359243,385.40304122,0.00013847,2]
[401274787,1768091364566,385.40304122,0.00013847,2]
[401274788,1768091368298,8229.20391756,0.00013847,2]
[401274789,1768091368326,9199.32688593,0.00013847,2]
[401274793,1768091375376,273.5996837,0.00013876,2]
[401274794,1768091395121,500.0,0.00013847,2]
[401274795,1768091401180,27.08343037,0.00013888,2]
[401274796,1768091401206,272.91656963,0.00013888,2]
[401274797,1768091401245,300.0,0.00013888,2]
[401274798,1768091401521,1200.0,0.00013888,2]
[401274799,1768091402755,300.0,0.00013888,2]
[401274800,1768091402826,150.0,0.00013888,2]
[401274801,1768091402998,155.0,0.00013888,2]
[401274802,1768091403729,264.0,0.00013889,2]
[401274810,1768091409483,500.0,0.000138,2]
[401274811,1768091410416,4021.57,0.00013879,2]
[401274812,1768091410633,2836.52343037,0.00013879,2]
[401274813,1768091410658,1185.04656963,0.00013879,2]
[401274814,1768091410856,4021.57,0.00013879,2]
[401274815,1768091411368,4021.57,0.00013879,2]
[401274816,1768091411600,771.82343037,0.00013879,2]
[401274817,1768091411626,3249.74656963,0.00013879,2]
[401274824,1768091422320,1182.01347041,0.00013879,2]
[401274825,1768091427992,500.0,0.0001387,2]
[401274841,1768091431396,-904781.97674177,0.00013889,2]
[401274844,1768091431406,-600.0,0.00013892,2]
[401274847,1768091431416,-200.71852774,0.00013892,2]
[401274849,1768091431427,-2500.0,0.00013892,2]
[401274851,1768091431437,-5000.0,0.00013892,2]
[401274853,1768091431447,-300.0,0.00013895,2]
[401274855,1768091431457,-500.0,0.000139,2]
[401274857,1768091431466,-600.0,0.00013911,2]
[401274859,1768091431476,-2500.0,0.00013911,2]
[401274861,1768091431486,-2500.0,0.00013911,2]
[401274862,1768091431496,-2500.0,0.00013911,2]
[401274863,1768091431506,-2489.14659071,0.00013911,2]
[401274864,1768091431515,-300.0,0.00013926,2]
[401274865,1768091431524,-2500.0,0.00013947,2]
[401274866,1768091431534,-3497.9376,0.00013947,2]
[401274867,1768091431543,-23986.7725,0.00013947,2]
[401274868,1768091431552,-214.0,0.00013948,2]
[401274869,1768091431562,-250.0,0.00013948,2]
[401274870,1768091431571,-250.0,0.0001395,2]
[401274871,1768091431580,-690.97,0.00013992,2]
[401274872,1768091431589,-19999.99,0.00013992,2]
[401274873,1768091431599,-4987.2,0.00013992,2]
[401274874,1768091431608,-9999.99,0.00013992,2]
[401274875,1768091431617,-150.99,0.00013992,2]
[401274876,1768091431626,-501.86313919,0.00014,2]
[401274877,1768091431635,-151.0,0.00014039,2]
[401274878,1768091431644,-151.0,0.00014039,2]
[401274879,1768091431654,-151.0,0.00014039,2]
[401274881,1768091431664,-151.0,0.00014039,2]
[401274883,1768091431673,-151.0,0.00014039,2]
[401274885,1768091431682,-151.0,0.00014039,2]
[401274887,1768091431691,-151.0,0.00014039,2]
[401274889,1768091431700,-151.0,0.00014039,2]
[401274890,1768091431709,-151.0,0.00014039,2]
[401274892,1768091431718,-151.0,0.00014039,2]
[401274893,1768091431727,-500.0,0.00014046,2]
[401274894,1768091431738,-500.0,0.00014046,2]
[401274895,1768091431747,-500.0,0.00014046,2]
[401274896,1768091431756,-500.0,0.00014046,2]
[401274897,1768091431766,-500.0,0.00014046,2]
[401274899,1768091431775,-500.0,0.00014046,2]
[401274901,1768091431785,-500.0,0.00014046,2]
[401274902,1768091431794,-500.0,0.00014046,2]
[401274904,1768091431803,-500.0,0.00014046,2]
[401274906,1768091431813,-500.0,0.00014046,2]
[401274909,1768091431823,-500.0,0.00014046,2]
[401274910,1768091431832,-500.0,0.00014046,2]
[401274911,1768091431842,-512.38385976,0.00014046,2]
[401274912,1768091431851,-554.27166216,0.00014046,2]
[401274913,1768091431861,-500.0,0.00014046,2]
[401274914,1768091431871,-500.0,0.00014046,2]
[401274915,1768091431880,-500.0,0.00014046,2]
[401274916,1768091431889,-500.0,0.00014046,2]
[401274917,1768091431899,-648.66,0.00014046,2]
[401274918,1768091431909,-640.29,0.00014046,2]
[401274919,1768091431919,-592.93433257,0.00014046,2]
[401274920,1768091431932,-1000.0,0.00014047,2]
[401274921,1768091431942,-500.0,0.00014146,2]
[401274922,1768091431952,-500.0,0.00014146,2]
[401274923,1768091431961,-500.0,0.00014146,2]
[401274924,1768091431971,-500.0,0.00014146,2]
[401274925,1768091431981,-500.0,0.00014146,2]
[401274926,1768091431991,-500.0,0.00014146,2]
[401274927,1768091432000,-500.0,0.00014146,2]
[401274928,1768091432010,-500.0,0.00014146,2]
[401274929,1768091432019,-500.0,0.00014146,2]
[401274930,1768091432029,-500.0,0.00014146,2]
[401274931,1768091432040,-500.0,0.00014146,2]
[401274932,1768091432051,-500.0,0.00014146,2]
[401274933,1768091432060,-784.77,0.00014146,2]
[401274934,1768091432070,-523.95659394,0.00014146,2]
[401274935,1768091432079,-523.95659394,0.00014146,2]
[401274936,1768091432088,-523.95659394,0.00014146,2]
[401274937,1768091432099,-523.95659394,0.00014146,2]
[401274938,1768091432109,-523.95659394,0.00014146,2]
[401274939,1768091432118,-523.95659394,0.00014146,2]
[401274940,1768091432128,-523.95659394,0.00014146,2]
[401274941,1768091432138,-523.95659394,0.00014146,2]
[401274942,1768091432147,-523.95659394,0.00014146,2]
[401274943,1768091432156,-523.95659394,0.00014146,2]
[401274944,1768091432166,-523.95659394,0.00014146,2]
[401274945,1768091432176,-523.95659394,0.00014146,2]
[401274946,1768091432185,-523.95659394,0.00014146,2]
[401274947,1768091432195,-523.95659394,0.00014146,2]
[401274948,1768091432204,-523.95659394,0.00014146,2]
[401274949,1768091432214,-523.95659394,0.00014146,2]
[401274950,1768091432225,-523.95659394,0.00014146,2]
[401274951,1768091432235,-523.95659394,0.00014146,2]
[401274952,1768091432244,-523.95659394,0.00014146,2]
[401274953,1768091432255,-523.95659394,0.00014146,2]
[401274954,1768091432265,-523.95659394,0.00014146,2]
[401274955,1768091432275,-523.95659394,0.00014146,2]
[401274956,1768091432284,-784.77,0.0001442,2]
[401274957,1768091432294,-166.66,0.00014586,2]
[401274958,1768091432304,-216.0,0.00014645,2]
[401274959,1768091432315,-1852.42,0.0001467,2]
[401274960,1768091432324,-500.0,0.00014687,2]
[401274961,1768091432334,-784.77,0.00014694,2]
[401274962,1768091432343,-622.57091342,0.00014799,2]
[401274963,1768091432353,-500.0,0.00014799,2]
[401274964,1768091432363,-500.0,0.00014799,2]
[401274965,1768091432373,-500.0,0.00014799,2]
[401274966,1768091432383,-500.06843701,0.00014799,2]
[401274967,1768091432392,-500.0,0.00014799,2]
[401274968,1768091432401,-500.0,0.00014799,2]
[401274969,1768091432412,-500.0,0.00014799,2]
[401274970,1768091432422,-166.66,0.00014893,2]
[401274971,1768091432431,-247.2647894,0.000149,2]
[401274972,1768091432441,-784.77,0.00014968,2]
[401274973,1768091432451,-255.0,0.00015013,2]
[401274974,1768091432460,-526.9242239,0.0001507,2]
[401274975,1768091432470,-500.1991859,0.00015173,2]
[401274976,1768091432479,-173.07731814,0.00015173,2]
[401274977,1768091432489,-500.0,0.00015173,2]
[401274978,1768091432499,-500.0,0.00015173,2]
[401274979,1768091432508,-165.97111473,0.00015173,2]
[401274980,1768091432518,-500.0,0.00015173,2]
[401274981,1768091432527,-177.16825128,0.00015173,2]
[401274982,1768091432536,-501.12934811,0.00015173,2]
[401274983,1768091432546,-500.0,0.00015173,2]
[401274984,1768091432555,-500.0,0.00015173,2]
[401274985,1768091432565,-453.03832283,0.00015173,2]
[401274986,1768091432574,-500.0,0.00015173,2]
[401274987,1768091432583,-500.0,0.00015173,2]
[401274988,1768091432594,-163.57078738,0.00015173,2]
[401274989,1768091432603,-500.0,0.00015173,2]
[401274990,1768091432612,-500.0,0.00015173,2]
[401274991,1768091432622,-500.0,0.00015173,2]
[401274992,1768091432632,-500.0,0.00015173,2]
[401274993,1768091432642,-500.0,0.00015173,2]
[401274994,1768091432651,-500.0,0.00015173,2]
[401274995,1768091432660,-166.66,0.000152,2]
[401274996,1768091432670,-420.0,0.00015217,2]
[401274997,1768091432680,-300.0,0.00015217,2]
[401274998,1768091432690,-784.77,0.00015242,2]
[401274999,1768091432699,-151.0,0.00015261,2]
[401275000,1768091432709,-151.0,0.00015261,2]
[401275001,1768091432719,-151.0,0.00015266,2]
[401275002,1768091432728,-151.0,0.00015266,2]
[401275003,1768091432738,-151.0,0.00015276,2]
[401275004,1768091432747,-151.0,0.00015276,2]
[401275005,1768091432757,-1680.0,0.00015277,2]
[401275006,1768091432766,-300.0,0.00015278,2]
[401275007,1768091432776,-600.0,0.00015278,2]
[401275008,1768091432785,-185.90849551,0.00015278,2]
[401275009,1768091432794,-195.0,0.00015278,2]
[401275010,1768091432807,-301.36815664,0.00015278,2]
[401275011,1768091432817,-300.0,0.00015278,2]
[401275012,1768091432826,-600.0,0.00015278,2]
[401275013,1768091432835,-150.0,0.00015278,2]
[401275014,1768091432844,-2500.0,0.00015278,2]
[401275015,1768091432855,-5000.0,0.00015278,2]
[401275016,1768091432864,-195.0,0.00015342,2]
[401275017,1768091432873,-250.0,0.00015342,2]
[401275018,1768091432885,-222.11260278,0.00015342,2]
[401275019,1768091432896,-600.0,0.00015342,2]
[401275020,1768091432906,-12712.44,0.00015358,2]
[401275021,1768091432915,-166.66,0.00015507,2]
[401275022,1768091432928,-784.77,0.00015516,2]
[401275023,1768091432939,-17428.53080348,0.00015631,2]
[401275024,1768091432948,-1000.0,0.00015721,2]
[401275025,1768091432959,-500.0,0.00015721,2]
[401275026,1768091432970,-500.0,0.0001573,2]
[401275027,1768091432979,-166.66,0.00015814,2]
[401275028,1768091432988,-9999.99,0.00016116,2]
[401275029,1768091432999,-1344.41,0.00016116,2]
[401275030,1768091433009,-17970.35,0.00016116,2]
[401275031,1768091433018,-166.66,0.00016121,2]
[401275032,1768091433028,-433.0,0.00016235,2]
[401275033,1768091433038,-1500.0,0.00016268,2]
[401275034,1768091433048,-500.0,0.00016437,2]
[401275035,1768091433057,-500.0,0.00016437,2]
[401275036,1768091433067,-500.0,0.00016438,2]
[401275037,1768091433076,-500.0,0.00016438,2]
[401275038,1768091433085,-500.0,0.00016438,2]
[401275039,1768091433095,-500.0,0.00016438,2]
[401275040,1768091433104,-500.0,0.00016438,2]
[401275041,1768091433114,-500.0,0.00016438,2]
[401275042,1768091433124,-500.0,0.00016438,2]
[401275043,1768091433134,-500.0,0.00016438,2]
[401275044,1768091433144,-500.0,0.00016438,2]
[401275045,1768091433154,-500.0,0.00016438,2]
[401275046,1768091433165,-500.0,0.00016438,2]
[401275047,1768091433174,-500.0,0.00016438,2]
[401275048,1768091433184,-500.0,0.00016438,2]
[401275049,1768091433194,-500.0,0.00016438,2]
[401275050,1768091433204,-500.0,0.00016438,2]
[401275051,1768091433213,-500.0,0.00016438,2]
[401275052,1768091433223,-500.0,0.00016438,2]
[401275053,1768091433233,-500.0,0.00016438,2]
[401275054,1768091433243,-500.0,0.00016438,2]
[401275055,1768091433253,-500.0,0.00016438,2]
[401275056,1768091433263,-500.0,0.00016438,2]
[401275057,1768091433273,-500.0,0.00016438,2]
[401275058,1768091433282,-500.0,0.00016438,2]
[401275059,1768091433292,-500.0,0.00016438,2]
[401275060,1768091433302,-500.0,0.00016438,2]
[401275061,1768091433312,-500.0,0.00016438,2]
[401275062,1768091433321,-500.0,0.00016438,2]
[401275063,1768091433331,-500.0,0.00016438,2]
[401275064,1768091433340,-500.0,0.00016438,2]
[401275065,1768091433349,-500.0,0.00016438,2]
[401275066,1768091433359,-500.0,0.00016438,2]
[401275067,1768091433368,-500.0,0.00016438,2]
[401275068,1768091433378,-500.0,0.00016438,2]
[401275069,1768091433388,-500.0,0.00016438,2]
[401275070,1768091433399,-500.0,0.00016438,2]
[401275071,1768091433408,-500.0,0.00016438,2]
[401275072,1768091433418,-500.0,0.00016438,2]
[401275073,1768091433428,-500.0,0.00016438,2]
[401275074,1768091433437,-500.0,0.00016438,2]
[401275075,1768091433447,-500.0,0.00016438,2]
[401275076,1768091433457,-500.0,0.00016438,2]
[401275077,1768091433466,-500.0,0.00016438,2]
[401275078,1768091433476,-500.0,0.00016438,2]
[401275079,1768091433486,-500.0,0.00016438,2]
[401275080,1768091433495,-500.0,0.00016438,2]
[401275081,1768091433504,-500.0,0.00016438,2]
[401275082,1768091433514,-500.0,0.00016438,2]
[401275083,1768091433523,-500.0,0.00016438,2]
[401275084,1768091433533,-500.0,0.00016438,2]
[401275085,1768091433542,-500.0,0.00016438,2]
[401275086,1768091433555,-500.0,0.00016438,2]
[401275087,1768091433564,-500.0,0.00016438,2]
[401275088,1768091433573,-500.0,0.00016438,2]
[401275089,1768091433583,-500.0,0.00016438,2]
[401275090,1768091433592,-500.0,0.00016438,2]
[401275091,1768091433601,-500.0,0.00016438,2]
[401275092,1768091433611,-500.0,0.00016438,2]
[401275093,1768091433621,-500.0,0.00016438,2]
[401275094,1768091433631,-500.0,0.00016438,2]
[401275095,1768091433640,-500.0,0.00016438,2]
[401275096,1768091433650,-500.0,0.00016438,2]
[401275097,1768091433660,-500.0,0.00016438,2]
[401275098,1768091433670,-500.0,0.00016438,2]
[401275099,1768091433679,-500.0,0.00016438,2]
[401275100,1768091433688,-500.0,0.00016438,2]
[401275101,1768091433698,-500.0,0.00016438,2]
[401275102,1768091433708,-500.0,0.00016438,2]
[401275103,1768091433717,-282.99031456,0.00016438,2]
[401275104,1768091433727,-603.12603829,0.00016438,2]
[401275105,1768091433736,-165.14,0.0001644,2]
[401275106,1768091433745,-587.0,0.00016673,2]
[401275107,1768091433755,-1000.0,0.00016696,2]
[401275108,1768091433764,-198.19,0.00016712,2]
[401275109,1768091433774,-2351.0,0.00016805,2]
[401275110,1768091433783,-1278.61580038,0.00016816,2]
[401275111,1768091433793,-174.73552704,0.00016921,2]
[401275112,1768091433803,-500.0,0.00016921,2]
[401275113,1768091433812,-500.0,0.00016975,2]
[401275114,1768091433822,-500.0,0.00016975,2]
[401275115,1768091433831,-500.0,0.00016975,2]
[401275116,1768091433841,-250.0,0.00017,2]
[401275117,1768091433851,-167.33,0.00017074,2]
[401275118,1768091433861,-1746.0,0.00017196,2]
[401275119,1768091433871,-150.0,0.00017197,2]
[401275120,1768091433880,-17428.53080348,0.00017414,2]
[401275121,1768091433890,-736.0,0.00017541,2]
[401275122,1768091433900,-385.40304122,0.00017712,2]
[401275123,1768091433909,-385.40304122,0.00017712,2]
[401275124,1768091433919,-1746.0,0.00017905,2]
[401275125,1768091433939,-500.0,0.00017973,2]
[401275126,1768091433961,-274.34330531,0.00017973,2]
[401275127,1768091433970,-500.0,0.00017973,2]
[401275128,1768091434232,-150.0,0.00017973,2]
[401275129,1768091434248,-500.0,0.00017973,2]
[401275130,1768091434258,-504.24318867,0.00017973,2]
[401275131,1768091434268,-500.0,0.00017973,2]
[401275132,1768091434278,-500.0,0.00017973,2]
[401275133,1768091434288,-500.0,0.00017973,2]
[401275134,1768091434298,-500.0,0.00017973,2]
[401275135,1768091434309,-500.0,0.00017973,2]
[401275136,1768091434318,-500.75581913,0.00017973,2]
[401275137,1768091434328,-500.0,0.00017973,2]
[401275138,1768091434338,-500.0,0.00017973,2]
[401275139,1768091434347,-500.0,0.00017973,2]
[401275140,1768091434356,-569.64539879,0.00017973,2]
[401275141,1768091434366,-500.0,0.00017973,2]
[401275142,1768091434375,-500.0,0.00017973,2]
[401275143,1768091434385,-500.0,0.00017973,2]
[401275144,1768091434395,-500.0,0.00017973,2]
[401275145,1768091434406,-432.8765014,0.0001799,2]
[401275146,1768091434415,-500.0,0.00017999,2]
[401275147,1768091434425,-500.0,0.00017999,2]
[401275148,1768091434434,-1372.29,0.00018,7]
[401275149,1768091434443,-366637.22107795,0.00018,2]
[401275150,1768091434453,-151.0,0.00018,2]
[401275151,1768091434462,-151.0,0.00018,2]
[401275152,1768091434471,-151.0,0.00018,2]
[401275153,1768091434480,-250.0,0.00018141,2]
[401275154,1768091434490,-1000.0,0.00018257,2]
[401275155,1768091434499,-1000.0,0.00018257,2]
[401275156,1768091434508,-1000.0,0.00018257,2]
[401275157,1768091434518,-1000.0,0.00018257,2]
[401275158,1768091434527,-823.0,0.00018268,2]
[401275159,1768091434537,-1432.0,0.00018485,2]
[401275160,1768091434546,-235.35795411,0.00018521,2]
[401275161,1768091434555,-361.82992148,0.00018533,2]
[401275162,1768091434565,-500.0,0.00018533,2]
[401275163,1768091434574,-500.0,0.00018533,2]
[401275164,1768091434583,-157.72323008,0.00018603,2]
[401275165,1768091434594,-1746.0,0.00018615,2]
[401275166,1768091434605,-500.0,0.00018756,2]
[401275167,1768091434614,-500.0,0.00018761,2]
[401275168,1768091434624,-1252.0,0.00018971,2]
[401275169,1768091434634,-300.0,0.00019,2]
[401275170,1768091434643,-154.29127912,0.00019,2]
[401275171,1768091434652,-17428.53080348,0.00019198,2]
[401275172,1768091434662,-1746.0,0.00019324,2]
[401275173,1768091434672,-500.0,0.00019474,2]
[401275174,1768091434682,-620.0,0.00019503,2]
[401275175,1768091434692,-1000.0,0.00019503,2]
[401275176,1768091434702,-500.0,0.00019503,2]
[401275177,1768091434712,-250.0,0.00019503,2]
[401275178,1768091434721,-292.87237527,0.00019503,2]
[401275179,1768091434731,-500.0,0.00019503,2]
[401275180,1768091434742,-1000.0,0.00019503,2]
[401275181,1768091434752,-500.0,0.00019503,2]
[401275182,1768091434762,-250.0,0.00019503,2]
[401275183,1768091434771,-500.0,0.00019503,2]
[401275184,1768091434781,-1000.0,0.00019503,2]
[401275185,1768091434790,-500.0,0.00019503,2]
[401275186,1768091434799,-250.0,0.00019503,2]
[401275187,1768091434808,-500.0,0.00019503,2]
[401275188,1768091434818,-250.0,0.00019503,2]
[401275189,1768091434827,-1000.0,0.00019503,2]
[401275190,1768091434837,-500.0,0.00019503,2]
[401275191,1768091434846,-500.0,0.00019503,2]
[401275192,1768091434856,-250.0,0.00019503,2]
[401275193,1768091434865,-1000.0,0.00019503,2]
[401275194,1768091434875,-500.0,0.00019503,2]
[401275195,1768091434884,-500.0,0.00019503,2]
[401275196,1768091434895,-250.0,0.00019503,2]
[401275197,1768091434904,-1000.0,0.00019503,2]
[401275198,1768091434913,-500.0,0.00019503,2]
[401275199,1768091434924,-500.0,0.00019503,2]
[401275200,1768091434935,-250.0,0.00019503,2]
[401275201,1768091434944,-1000.0,0.00019503,2]
[401275202,1768091434953,-500.0,0.00019503,2]
[401275203,1768091434963,-500.0,0.00019503,2]
[401275204,1768091434972,-275.30162004,0.00019503,2]
[401275205,1768091434981,-1000.0,0.00019503,2]
[401275206,1768091434991,-500.0,0.00019503,2]
[401275207,1768091435000,-500.0,0.00019503,2]
[401275208,1768091435009,-1000.0,0.00019503,2]
[401275209,1768091435018,-500.0,0.00019503,2]
[401275210,1768091435028,-500.0,0.00019503,2]
[401275211,1768091435038,-1000.0,0.00019503,2]
[401275212,1768091435047,-500.0,0.00019503,2]
[401275213,1768091435058,-500.0,0.00019503,2]
[401275214,1768091435067,-1000.0,0.00019503,2]
[401275215,1768091435076,-500.0,0.00019503,2]
[401275216,1768091435086,-500.0,0.00019503,2]
[401275217,1768091435095,-1000.0,0.00019503,2]
[401275218,1768091435104,-500.0,0.00019503,2]
[401275219,1768091435114,-500.0,0.00019503,2]
[401275220,1768091435124,-578.20924308,0.00019503,2]
[401275221,1768091435133,-151.0,0.00019503,2]
[401275222,1768091435142,-250.0,0.00019503,2]
[401275223,1768091435151,-322.6107,0.00019503,2]
[401275224,1768091435160,-250.0,0.00019503,2]
[401275225,1768091435169,-166.77833559,0.00019503,2]
[401275226,1768091435178,-553.64373807,0.00019503,2]
[401275227,1768091435187,-250.0,0.00019503,2]
[401275228,1768091435197,-998.0,0.00019503,2]
[401275229,1768091435206,-279.58639713,0.00019503,2]
[401275230,1768091435216,-250.0,0.00019503,2]
[401275231,1768091435227,-250.0,0.00019503,2]
[401275232,1768091435238,-250.0,0.00019503,2]
[401275233,1768091435249,-250.0,0.00019503,2]
[401275234,1768091435258,-250.0,0.00019503,2]
[401275235,1768091435268,-250.0,0.00019503,2]
[401275236,1768091435278,-250.0,0.00019503,2]
[401275237,1768091435287,-250.0,0.00019503,2]
[401275238,1768091435296,-250.0,0.00019503,2]
[401275239,1768091435306,-250.0,0.00019503,2]
[401275240,1768091435315,-250.0,0.00019503,2]
[401275241,1768091435324,-2000.0,0.00019503,2]
[401275242,1768091435333,-2000.0,0.00019503,2]
[401275243,1768091435342,-2000.0,0.00019503,2]
[401275244,1768091435352,-2000.0,0.00019503,2]
[401275245,1768091435361,-2000.0,0.00019503,2]
[401275246,1768091435371,-2000.0,0.00019503,2]
[401275247,1768091435380,-2000.0,0.00019503,2]
[401275248,1768091435389,-1000.0,0.00019503,2]
[401275249,1768091435399,-526.92422386,0.00019542,2]
[401275250,1768091435408,-1152.0,0.00020016,2]
[401275251,1768091435418,-1746.0,0.00020034,2]
[401275252,1768091435427,-151.0,0.00020051,2]
[401275253,1768091435436,-574.12855637,0.00020051,2]
[401275254,1768091435447,-500.0,0.000202,2]
[401275255,1768091435459,-500.0,0.00020201,2]
[401275256,1768091435467,-500.0,0.00020202,2]
[401275257,1768091435477,-499.9999,0.00020203,2]
[401275258,1768091435486,-750.0,0.00020499,2]
[401275259,1768091435495,-573.39766123,0.00020599,2]
[401275260,1768091435505,-150.0,0.00020599,2]
[401275261,1768091435513,-1746.0,0.00020743,2]
[401275262,1768091435523,-500.0,0.00020801,2]
[401275263,1768091435533,-500.0,0.00020857,2]
[401275264,1768091435543,-500.0,0.00020857,2]
[401275265,1768091435552,-500.0,0.00020857,2]
[401275266,1768091435562,-500.0,0.00020857,2]
[401275267,1768091435572,-500.0,0.00020857,2]